lending/lending_fUSD_20250430
["ID","MTS","AMOUNT","RATE_DAILY","PERIOD"]
[359400459,1745991644257,-470.0,0.00045976,31]
[359400460,1745991644305,-243.66644586,0.00045976,31]
[359400461,1745991644340,-504.27289461,0.00045976,31]
[359400462,1745991644376,-470.0,0.00045976,31]
[359400463,1745991644413,-470.0,0.00045976,31]
[359400464,1745991644449,-470.0,0.00045976,31]
[359400465,1745991644488,-618.60577624,0.00045976,31]
[359400466,1745991644528,-470.0,0.00045976,31]
[359400467,1745991644563,-470.0,0.00045976,31]
[359400468,1745991644598,-470.0,0.00045976,31]
[359400469,1745991644633,-470.0,0.00045976,31]
[359400470,1745991644669,-470.0,0.00045976,31]
[359400471,1745991644705,-470.0,0.00045976,31]
[359400472,1745991644741,-470.0,0.00045976,31]
[359400473,1745991644776,-470.0,0.00045976,31]
[359400474,1745991644811,-235.31220894,0.00045976,31]
[359400475,1745991644845,-280.44681983,0.00045976,31]
[359400476,1745991644880,-470.0,0.00045976,31]
[359400477,1745991644916,-470.0,0.00045976,31]
[359400478,1745991644958,-470.0,0.00045976,31]
[359400479,1745991644994,-470.0,0.00045976,31]
[359400480,1745991645031,-470.0,0.00045976,31]
[359400481,1745991645067,-470.0,0.00045976,31]
[359400482,1745991645102,-470.0,0.00045976,31]
[359400483,1745991645349,-574.59241675,0.00045976,31]
[359400484,1745991645384,-514.95599626,0.00045976,31]
[359400485,1745991645419,-470.0,0.00045976,31]
[359400486,1745991645454,-470.0,0.00045976,31]
[359400487,1745991645489,-435.13866739,0.00045976,31]
[359400488,1745991645523,-470.0,0.00045976,31]
[359400489,1745991645559,-470.0,0.00045976,31]
[359400490,1745991645595,-470.0,0.00045976,31]
[359400491,1745991645632,-470.0,0.00045976,31]
[359400492,1745991645671,-470.0,0.00045976,31]
[359400493,1745991645706,-470.0,0.00045976,31]
[359400494,1745991645741,-470.0,0.00045976,31]
[359400495,1745991645776,-470.0,0.00045976,31]
[359400496,1745991645811,-470.0,0.00045976,31]
[359400497,1745991645844,-568.07405741,0.00045976,31]
[359400498,1745991645878,-573.51356912,0.00045976,31]
[359400499,1745991645911,-470.0,0.00045976,31]
[359400500,1745991645944,-470.0,0.00045976,31]
[359400501,1745991645977,-470.0,0.00045976,31]
[359400502,1745991646011,-248.62587871,0.00045976,31]
[359400503,1745991646045,-470.0,0.00045976,31]
[359400504,1745991646078,-576.72587674,0.00045976,31]
[359400505,1745991646114,-470.0,0.00045976,31]
[359400506,1745991646147,-470.0,0.00045976,31]
[359400507,1745991646181,-470.0,0.00045976,31]
[359400508,1745991646214,-470.0,0.00045976,31]
[359400509,1745991646247,-478.8469124,0.00045976,31]
[359400510,1745991646280,-470.0,0.00045976,31]
[359400511,1745991646314,-566.8542929,0.00045976,31]
[359400512,1745991646349,-470.0,0.00045976,31]
[359400513,1745991646384,-470.0,0.00045976,31]
[359400514,1745991646419,-470.0,0.00045976,31]
[359400515,1745991646459,-470.0,0.00045976,31]
[359400516,1745991646502,-536.27326422,0.00045976,31]
[359400517,1745991646539,-470.0,0.00045976,31]
[359400518,1745991646575,-161.56818258,0.00045976,31]
[359400519,1745991646610,-527.0005061,0.00045976,31]
[359400520,1745991646646,-470.0,0.00045976,31]
[359400521,1745991646683,-470.0,0.00045976,31]
[359400522,1745991646718,-470.0,0.00045976,31]
[359400523,1745991646752,-470.0,0.00045976,31]
[359400524,1745991646785,-470.0,0.00045976,31]
[359400525,1745991646818,-470.0,0.00045976,31]
[359400526,1745991646851,-470.0,0.00045976,31]
[359400527,1745991646886,-570.27527616,0.00045976,31]
[359400528,1745991646920,-470.0,0.00045976,31]
[359400529,1745991646955,-171.29355783,0.00045976,31]
[359400530,1745991646989,-511.83990601,0.00045976,31]
[359400531,1745991647025,-470.0,0.00045976,31]
[359400532,1745991647060,-550.03476421,0.00045976,31]
[359400533,1745991647096,-219.3995799,0.00045976,31]
[359400534,1745991647135,-470.0,0.00045976,31]
[359400535,1745991647168,-470.0,0.00045976,31]
[359400536,1745991647202,-470.0,0.00045976,31]
[359400537,1745991647237,-470.0,0.00045976,31]
[359400538,1745991647272,-470.0,0.00045976,31]
[359400539,1745991647306,-609.86359834,0.00045976,31]
[359400540,1745991647343,-470.0,0.00045976,31]
[359400541,1745991647377,-470.0,0.00045976,31]
[359400542,1745991647411,-470.0,0.00045976,31]
[359400543,1745991647446,-598.99715413,0.00045976,31]
[359400544,1745991647483,-470.0,0.00045976,31]
[359400545,1745991647519,-584.95248003,0.00045976,31]
[359400546,1745991647557,-470.0,0.00045976,31]
[359400547,1745991647594,-470.0,0.00045976,31]
[359400548,1745991647645,-470.0,0.00045976,31]
[359400549,1745991647682,-470.0,0.00045976,31]
[359400550,1745991647721,-470.0,0.00045976,31]
[359400551,1745991647758,-500.0,0.00045976,31]
[359400552,1745991647795,-537.27744756,0.00045976,31]
[359400553,1745991647830,-503.40939563,0.00045976,31]
[359400554,1745991647866,-470.0,0.00045976,31]
[359400555,1745991647902,-470.0,0.00045976,31]
[359400556,1745991647937,-470.0,0.00045976,31]
[359400557,1745991647973,-470.0,0.00045976,31]
[359400558,1745991648008,-470.0,0.00045976,31]
[359400559,1745991648044,-470.0,0.00045976,31]
[359400560,1745991648082,-583.67814666,0.00045976,31]
[359400561,1745991648119,-518.82078019,0.00045976,31]
[359400562,1745991648155,-500.87436312,0.00045976,31]
[359400563,1745991648190,-470.0,0.00045976,31]
[359400564,1745991648427,-470.0,0.00045976,31]
[359400565,1745991648467,-470.0,0.00045976,31]
[359400566,1745991648503,-470.0,0.00045976,31]
[359400567,1745991648545,-470.0,0.00045976,31]
[359400568,1745991648581,-470.0,0.00045976,31]
[359400569,1745991648620,-470.0,0.00045976,31]
[359400570,1745991648657,-533.35620409,0.00045976,31]
[359400571,1745991648695,-568.01314079,0.00045976,31]
[359400572,1745991648730,-470.0,0.00045976,31]
[359400573,1745991648766,-470.0,0.00045976,31]
[359400574,1745991648801,-470.0,0.00045976,31]
[359400575,1745991648837,-470.0,0.00045976,31]
[359400576,1745991649089,-470.0,0.00045976,31]
[359400577,1745991649127,-353.17,0.00045976,31]
[359400578,1745991649168,-470.0,0.00045976,31]
[359400579,1745991649207,-470.0,0.00045976,31]
[359400580,1745991649245,-470.0,0.00045976,31]
[359400581,1745991649284,-470.0,0.00045976,31]
[359400582,1745991649322,-470.0,0.00045976,31]
[359400583,1745991649361,-470.0,0.00045976,31]
[359400584,1745991649400,-513.73416945,0.00045976,31]
[359400585,1745991649440,-583.53060181,0.00045976,31]
[359400586,1745991649483,-470.0,0.00045976,31]
[359400587,1745991649523,-470.0,0.00045976,31]
[359400588,1745991649564,-470.0,0.00045976,31]
[359400589,1745991649601,-470.0,0.00045976,31]
[359400590,1745991649639,-470.0,0.00045976,31]
[359400591,1745991649679,-470.0,0.00045976,31]
[359400592,1745991649716,-470.0,0.00045976,31]
[359400593,1745991649752,-259.32216321,0.00045976,31]
[359400594,1745991649789,-470.0,0.00045976,31]
[359400595,1745991649833,-470.0,0.00045976,31]
[359400596,1745991649874,-164.88619985,0.00045976,31]
[359400597,1745991649913,-470.0,0.00045976,31]
[359400598,1745991649951,-470.0,0.00045976,31]
[359400599,1745991649989,-470.0,0.00045976,31]
[359400600,1745991650024,-470.0,0.00045976,31]
[359400601,1745991650061,-470.0,0.00045976,31]
[359400602,1745991650101,-470.0,0.00045976,31]
[359400603,1745991650143,-470.0,0.00045976,31]
[359400604,1745991650182,-470.0,0.00045976,31]
[359400605,1745991650220,-312.21355363,0.00045976,31]
[359400606,1745991650258,-470.0,0.00045976,31]
[359400607,1745991650295,-537.29866927,0.00045976,31]
[359400608,1745991650334,-533.90844544,0.00045976,31]
[359400609,1745991650371,-470.0,0.00045976,31]
[359400610,1745991650409,-470.0,0.00045976,31]
[359400611,1745991650447,-349.3193038,0.00045976,31]
[359400612,1745991650482,-470.0,0.00045976,31]
[359400613,1745991650519,-470.0,0.00045976,31]
[359400614,1745991650558,-500.0,0.00045976,31]
[359400615,1745991650596,-470.0,0.00045976,31]
[359400616,1745991650634,-207.98357313,0.00045976,31]
[359400617,1745991650674,-470.0,0.00045976,31]
[359400618,1745991650712,-589.50039708,0.00045976,31]
[359400619,1745991650747,-470.0,0.00045976,31]
[359400620,1745991650780,-470.0,0.00045976,31]
[359400621,1745991650814,-470.0,0.00045976,31]
[359400622,1745991650849,-470.0,0.00045976,31]
[359400623,1745991650884,-543.43853209,0.00045976,31]
[359400624,1745991650920,-470.0,0.00045976,31]
[359400625,1745991650955,-539.79398924,0.00045976,31]
[359400626,1745991650992,-470.0,0.00045976,31]
[359400627,1745991651028,-470.0,0.00045976,31]
[359400628,1745991651066,-509.10579834,0.00045976,31]
[359400629,1745991651103,-470.0,0.00045976,31]
[359400630,1745991651144,-470.0,0.00045976,31]
[359400631,1745991651182,-470.0,0.00045976,31]
[359400632,1745991651220,-480.91013552,0.00045976,31]
[359400633,1745991651258,-470.0,0.00045976,31]
[359400634,1745991651294,-500.0,0.00045976,31]
[359400635,1745991651333,-470.0,0.00045976,31]
[359400636,1745991651372,-207.41083731,0.00045976,31]
[359400637,1745991651408,-470.0,0.00045976,31]
[359400638,1745991651448,-470.0,0.00045976,31]
[359400639,1745991651484,-470.0,0.00045976,31]
[359400640,1745991651520,-470.0,0.00045976,31]
[359400641,1745991651558,-470.0,0.00045976,31]
[359400642,1745991651726,-429.70792356,0.00045976,31]
[359400643,1745991651766,-470.0,0.00045976,31]
[359400644,1745991651801,-470.0,0.00045976,31]
[359400645,1745991651836,-470.0,0.00045976,31]
[359400646,1745991651872,-524.11258772,0.00045976,31]
[359400647,1745991651907,-470.0,0.00045976,31]
[359400648,1745991651943,-470.0,0.00045976,31]
[359400649,1745991651979,-470.0,0.00045976,31]
[359400650,1745991652014,-572.21102669,0.00045976,31]
[359400651,1745991652049,-470.0,0.00045976,31]
[359400652,1745991652088,-575.98505651,0.00045976,31]
[359400653,1745991652124,-489.28173655,0.00045976,31]
[359400654,1745991652161,-470.0,0.00045976,31]
[359400655,1745991652197,-548.42396065,0.00045976,31]
[359400656,1745991652234,-470.0,0.00045976,31]
[359400657,1745991652271,-470.0,0.00045976,31]
[359400658,1745991652308,-470.0,0.00045976,31]
[359400659,1745991652345,-470.0,0.00045976,31]
[359400660,1745991652381,-470.0,0.00045976,31]
[359400661,1745991652417,-470.0,0.00045976,31]
[359400662,1745991652455,-531.31441183,0.00045976,31]
[359400663,1745991652494,-470.0,0.00045976,31]
[359400664,1745991652530,-545.29293626,0.00045976,31]
[359400665,1745991652566,-470.0,0.00045976,31]
[359400666,1745991652602,-470.0,0.00045976,31]
[359400667,1745991652638,-470.0,0.00045976,31]
[359400668,1745991652675,-470.0,0.00045976,31]
[359400669,1745991652713,-551.07426276,0.00045976,31]
[359400670,1745991652747,-566.0437758,0.00045976,31]
[359400671,1745991652783,-542.65368756,0.00045976,31]
[359400672,1745991652818,-470.0,0.00045976,31]
[359400673,1745991652852,-470.0,0.00045976,31]
[359400674,1745991652887,-582.65055821,0.00045976,31]
[359400675,1745991652921,-470.0,0.00045976,31]
[359400676,1745991652957,-513.65264512,0.00045976,31]
[359400677,1745991652993,-507.64482466,0.00045976,31]
[359400678,1745991653028,-470.0,0.00045976,31]
[359400679,1745991653063,-470.0,0.00045976,31]
[359400680,1745991653099,-470.0,0.00045976,31]
[359400681,1745991653139,-470.0,0.00045976,31]
[359400682,1745991653180,-470.0,0.00045976,31]
[359400683,1745991653220,-470.0,0.00045976,31]
[359400684,1745991653258,-605.17800541,0.00045976,31]
[359400685,1745991653296,-470.0,0.00045976,31]
[359400686,1745991653332,-470.0,0.00045976,31]
[359400687,1745991653370,-470.0,0.00045976,31]
[359400688,1745991653407,-470.0,0.00045976,31]
[359400689,1745991653444,-366.10191173,0.00045976,31]
[359400690,1745991653480,-470.0,0.00045976,31]
[359400691,1745991653515,-470.0,0.00045976,31]
[359400692,1745991653552,-470.0,0.00045976,31]
[359400693,1745991653588,-286.49686942,0.00045976,31]
[359400694,1745991653624,-470.0,0.00045976,31]
[359400695,1745991653658,-470.0,0.00045976,31]
[359400696,1745991653695,-561.64058164,0.00045976,31]
[359400697,1745991653731,-545.60988376,0.00045976,31]
[359400698,1745991653766,-470.0,0.00045976,31]
[359400699,1745991653802,-246.62387634,0.00045976,31]
[359400700,1745991653840,-470.0,0.00045976,31]
[359400701,1745991653876,-470.0,0.00045976,31]
[359400702,1745991653923,-470.0,0.00045976,31]
[359400703,1745991653961,-470.0,0.00045976,31]
[359400704,1745991653998,-470.0,0.00045976,31]
[359400705,1745991654037,-470.0,0.00045976,31]
[359400706,1745991654074,-463.24542563,0.00045976,31]
[359400707,1745991654113,-470.0,0.00045976,31]
[359400708,1745991654150,-470.0,0.00045976,31]
[359400709,1745991654186,-470.0,0.00045976,31]
[359400710,1745991654224,-470.0,0.00045976,31]
[359400711,1745991654261,-470.0,0.00045976,31]
[359400712,1745991654299,-546.9704318,0.00045976,31]
[359400713,1745991654335,-276.57735352,0.00045976,31]
[359400714,1745991654372,-470.0,0.00045976,31]
[359400715,1745991654407,-470.0,0.00045976,31]
[359400716,1745991654444,-533.54198646,0.00045976,31]
[359400717,1745991654480,-470.0,0.00045976,31]
[359400718,1745991654711,-470.0,0.00045976,31]
[359400719,1745991654750,-544.54661233,0.00045976,31]
[359400720,1745991654787,-613.92505261,0.00045976,31]
[359400721,1745991654824,-505.71794473,0.00045976,31]
[359400722,1745991654866,-470.0,0.00045976,31]
[359400723,1745991654907,-470.0,0.00045976,31]
[359400724,1745991654945,-470.0,0.00045976,31]
[359400725,1745991654983,-215.15754269,0.00045976,31]
[359400726,1745991655021,-470.0,0.00045976,31]
[359400727,1745991655059,-470.0,0.00045976,31]
[359400728,1745991655098,-575.94756562,0.00045976,31]
[359400729,1745991655138,-470.0,0.00045976,31]
[359400730,1745991655176,-511.91258655,0.00045976,31]
[359400731,1745991655217,-470.0,0.00045976,31]
[359400732,1745991655257,-510.11060677,0.00045976,31]
[359400733,1745991655294,-470.0,0.00045976,31]
[359400734,1745991655333,-470.0,0.00045976,31]
[359400735,1745991655371,-470.0,0.00045976,31]
[359400736,1745991655407,-470.0,0.00045976,31]
[359400737,1745991655444,-470.0,0.00045976,31]
[359400738,1745991655484,-538.76827171,0.00045976,31]
[359400739,1745991655525,-545.01579116,0.00045976,31]
[359400740,1745991655565,-549.63197854,0.00045976,31]
[359400741,1745991655604,-470.0,0.00045976,31]
[359400742,1745991655643,-470.0,0.00045976,31]
[359400743,1745991655684,-470.0,0.00045976,31]
[359400744,1745991655720,-536.39195663,0.00045976,31]
[359400745,1745991655757,-470.0,0.00045976,31]
[359400746,1745991655793,-470.0,0.00045976,31]
[359400747,1745991655829,-470.0,0.00045976,31]
[359400748,1745991655864,-470.0,0.00045976,31]
[359400749,1745991655899,-471.43693327,0.00045976,31]
[359400750,1745991655935,-470.0,0.00045976,31]
[359400751,1745991655971,-470.0,0.00045976,31]
[359400752,1745991656007,-400.96965174,0.00045976,31]
[359400753,1745991656043,-539.49918008,0.00045976,31]
[359400754,1745991656079,-470.0,0.00045976,31]
[359400755,1745991656116,-470.0,0.00045976,31]
[359400756,1745991656152,-417.49630108,0.00045976,31]
[359400757,1745991656188,-555.1454023,0.00045976,31]
[359400758,1745991656224,-470.0,0.00045976,31]
[359400759,1745991656261,-470.0,0.00045976,31]
[359400760,1745991656298,-470.0,0.00045976,31]
[359400761,1745991656335,-470.0,0.00045976,31]
[359400762,1745991656371,-470.0,0.00045976,31]
[359400763,1745991656412,-387.34644223,0.00045976,31]
[359400764,1745991656451,-470.0,0.00045976,31]
[359400765,1745991656490,-470.0,0.00045976,31]
[359400766,1745991656526,-387.48961785,0.00045976,31]
[359400767,1745991656563,-470.0,0.00045976,31]
[359400768,1745991656599,-470.0,0.00045976,31]
[359400769,1745991656635,-470.0,0.00045976,31]
[359400770,1745991656672,-545.90544465,0.00045976,31]
[359400771,1745991656707,-470.0,0.00045976,31]
[359400772,1745991656742,-470.0,0.00045976,31]
[359400773,1745991656785,-181.24217692,0.00045976,31]
[359400774,1745991656823,-470.0,0.00045976,31]
[359400775,1745991656860,-470.0,0.00045976,31]
[359400776,1745991656896,-470.0,0.00045976,31]
[359400777,1745991656934,-470.0,0.00045976,31]
[359400778,1745991656970,-470.0,0.00045976,31]
[359400779,1745991657006,-470.0,0.00045976,31]
[359400780,1745991657042,-470.0,0.00045976,31]
[359400781,1745991657077,-470.0,0.00045976,31]
[359400782,1745991657117,-470.0,0.00045976,31]
[359400783,1745991657152,-470.0,0.00045976,31]
[359400784,1745991657190,-470.0,0.00045976,31]
[359400785,1745991657226,-470.0,0.00045976,31]
[359400786,1745991657265,-470.0,0.00045976,31]
[359400787,1745991657302,-205.16799812,0.00045976,31]
[359400788,1745991657341,-470.0,0.00045976,31]
[359400789,1745991657378,-470.0,0.00045976,31]
[359400790,1745991657415,-554.62301154,0.00045976,31]
[359400791,1745991657575,-470.0,0.00045976,31]
[359400792,1745991657622,-470.0,0.00045976,31]
[359400793,1745991657658,-470.0,0.00045976,31]
[359400794,1745991657695,-593.28002599,0.00045976,31]
[359400795,1745991657729,-173.42806469,0.00045976,31]
[359400796,1745991657763,-470.0,0.00045976,31]
[359400797,1745991657795,-470.0,0.00045976,31]
[359400798,1745991657826,-474.3903669,0.00045976,31]
[359400799,1745991657857,-470.0,0.00045976,31]
[359400800,1745991657892,-470.0,0.00045976,31]
[359400801,1745991657928,-470.0,0.00045976,31]
[359400802,1745991657965,-470.0,0.00045976,31]
[359400803,1745991658002,-544.58373511,0.00045976,31]
[359400804,1745991658038,-206.81912537,0.00045976,31]
[359400805,1745991658075,-541.08491608,0.00045976,31]
[359400806,1745991658119,-470.0,0.00045976,31]
[359400807,1745991658158,-575.0044041,0.00045976,31]
[359400808,1745991658196,-470.0,0.00045976,31]
[359400809,1745991658231,-470.0,0.00045976,31]
[359400810,1745991658267,-470.0,0.00045976,31]
[359400811,1745991658301,-470.0,0.00045976,31]
[359400812,1745991658335,-470.0,0.00045976,31]
[359400813,1745991658369,-543.06195089,0.00045976,31]
[359400814,1745991658405,-470.0,0.00045976,31]
[359400815,1745991658440,-470.0,0.00045976,31]
[359400816,1745991658477,-470.0,0.00045976,31]
[359400817,1745991658512,-470.0,0.00045976,31]
[359400818,1745991658549,-470.0,0.00045976,31]
[359400819,1745991658585,-574.5908523,0.00045976,31]
[359400820,1745991658621,-470.0,0.00045976,31]
[359400821,1745991658656,-535.89590398,0.00045976,31]
[359400822,1745991658698,-470.0,0.00045976,31]
[359400823,1745991658734,-470.0,0.00045976,31]
[359400824,1745991658770,-470.0,0.00045976,31]
[359400825,1745991658806,-502.01595169,0.00045976,31]
[359400826,1745991658842,-470.0,0.00045976,31]
[359400827,1745991658878,-470.0,0.00045976,31]
[359400828,1745991658913,-470.0,0.00045976,31]
[359400829,1745991658947,-470.0,0.00045976,31]
[359400830,1745991658982,-307.46627593,0.00045976,31]
[359400831,1745991659019,-470.0,0.00045976,31]
[359400832,1745991659055,-470.0,0.00045976,31]
[359400833,1745991659095,-470.0,0.00045976,31]
[359400834,1745991659133,-470.0,0.00045976,31]
[359400835,1745991659173,-555.10276911,0.00045976,31]
[359400836,1745991659212,-470.0,0.00045976,31]
[359400837,1745991659251,-394.99117843,0.00045976,31]
[359400838,1745991659289,-470.0,0.00045976,31]
[359400839,1745991659326,-488.47725705,0.00045976,31]
[359400840,1745991659363,-470.0,0.00045976,31]
[359400841,1745991659401,-470.0,0.00045976,31]
[359400842,1745991659437,-470.0,0.00045976,31]
[359400843,1745991659473,-470.0,0.00045976,31]
[359400844,1745991659510,-207.4511926,0.00045976,31]
[359400845,1745991659547,-541.3859779,0.00045976,31]
[359400846,1745991659583,-521.85472436,0.00045976,31]
[359400847,1745991659621,-500.0,0.00045976,31]
[359400848,1745991659659,-470.0,0.00045976,31]
[359400849,1745991659699,-470.0,0.00045976,31]
[359400850,1745991659740,-470.0,0.00045976,31]
[359400851,1745991659780,-470.0,0.00045976,31]
[359400852,1745991659819,-470.0,0.00045976,31]
[359400853,1745991659858,-470.0,0.00045976,31]
[359400854,1745991659898,-470.0,0.00045976,31]
[359400855,1745991659938,-470.0,0.00045976,31]
[359400856,1745991659978,-470.0,0.00045976,31]
[359400857,1745991660017,-442.50057131,0.00045976,31]
[359400858,1745991660056,-470.0,0.00045976,31]
[359400859,1745991660096,-470.0,0.00045976,31]
[359400860,1745991660136,-470.0,0.00045976,31]
[359400861,1745991660174,-530.41301716,0.00045976,31]
[359400862,1745991660333,-531.39949321,0.00045976,31]
[359400863,1745991660371,-564.86667533,0.00045976,31]
[359400864,1745991660408,-470.0,0.00045976,31]
[359400865,1745991660444,-538.0973095,0.00045976,31]
[359400866,1745991660483,-586.60118094,0.00045976,31]
[359400867,1745991660519,-470.0,0.00045976,31]
[359400868,1745991660554,-470.0,0.00045976,31]
[359400869,1745991660590,-470.0,0.00045976,31]
[359400870,1745991660626,-554.54571136,0.00045976,31]
[359400871,1745991660661,-515.64812991,0.00045976,31]
[359400872,1745991660697,-545.96849959,0.00045976,31]
[359400873,1745991660734,-512.49901742,0.00045976,31]
[359400874,1745991660772,-470.0,0.00045976,31]
[359400875,1745991660809,-470.0,0.00045976,31]
[359400876,1745991660845,-470.0,0.00045976,31]
[359400877,1745991660882,-534.43145212,0.00045976,31]
[359400878,1745991660919,-470.0,0.00045976,31]
[359400879,1745991660958,-470.0,0.00045976,31]
[359400880,1745991660994,-584.88831094,0.00045976,31]
[359400881,1745991661029,-470.0,0.00045976,31]
[359400882,1745991661063,-470.0,0.00045976,31]
[359400883,1745991661096,-470.0,0.00045976,31]
[359400884,1745991661132,-470.0,0.00045976,31]
[359400885,1745991661166,-600.49684889,0.00045976,31]
[359400886,1745991661200,-470.0,0.00045976,31]
[359400887,1745991661233,-470.0,0.00045976,31]
[359400888,1745991661268,-470.0,0.00045976,31]
[359400889,1745991661303,-470.0,0.00045976,31]
[359400890,1745991661345,-568.08626758,0.00045976,31]
[359400891,1745991661389,-546.13807816,0.00045976,31]
[359400892,1745991661425,-470.0,0.00045976,31]
[359400893,1745991661461,-501.59842298,0.00045976,31]
[359400894,1745991661497,-470.0,0.00045976,31]
[359400895,1745991661533,-470.0,0.00045976,31]
[359400896,1745991661570,-542.8859724,0.00045976,31]
[359400897,1745991661606,-470.0,0.00045976,31]
[359400898,1745991661648,-544.49072079,0.00045976,31]
[359400899,1745991661689,-572.93314606,0.00045976,31]
[359400900,1745991661725,-470.0,0.00045976,31]
[359400901,1745991661760,-470.0,0.00045976,31]
[359400902,1745991661795,-470.0,0.00045976,31]
[359400903,1745991661830,-533.52795477,0.00045976,31]
[359400904,1745991661867,-470.0,0.00045976,31]
[359400905,1745991661903,-470.0,0.00045976,31]
[359400906,1745991661937,-470.0,0.00045976,31]
[359400907,1745991661971,-580.70498054,0.00045976,31]
[359400908,1745991662005,-470.0,0.00045976,31]
[359400909,1745991662039,-470.0,0.00045976,31]
[359400910,1745991662072,-502.79964006,0.00045976,31]
[359400911,1745991662106,-470.0,0.00045976,31]
[359400912,1745991662146,-470.0,0.00045976,31]
[359400913,1745991662181,-553.24774783,0.00045976,31]
[359400914,1745991662217,-470.0,0.00045976,31]
[359400915,1745991662252,-470.0,0.00045976,31]
[359400916,1745991662287,-258.25835131,0.00045976,31]
[359400917,1745991662322,-470.0,0.00045976,31]
[359400918,1745991662357,-470.0,0.00045976,31]
[359400919,1745991662392,-461.12330406,0.00045976,31]
[359400920,1745991662428,-470.0,0.00045976,31]
[359400921,1745991662465,-155.04056192,0.00045976,31]
[359400922,1745991662501,-400.0,0.00045976,31]
[359400923,1745991662539,-470.0,0.00045976,31]
[359400924,1745991662576,-470.0,0.00045976,31]
[359400925,1745991662612,-470.0,0.00045976,31]
[359400926,1745991662651,-470.0,0.00045976,31]
[359400927,1745991662690,-470.0,0.00045976,31]
[359400928,1745991662725,-245.78,0.00045976,31]
[359400929,1745991662758,-470.0,0.00045976,31]
[359400930,1745991662791,-241.70970411,0.00045976,31]
[359400931,1745991662974,-470.0,0.00045976,31]
[359400932,1745991663009,-536.04901695,0.00045976,31]
[359400933,1745991663048,-470.0,0.00045976,31]
[359400934,1745991663084,-475.39196944,0.00045976,31]
[359400935,1745991663120,-470.0,0.00045976,31]
[359400936,1745991663156,-470.0,0.00045976,31]
[359400937,1745991663193,-470.0,0.00045976,31]
[359400938,1745991663230,-533.5743819,0.00045976,31]
[359400939,1745991663267,-470.0,0.00045976,31]
[359400940,1745991663304,-540.6663854,0.00045976,31]
[359400941,1745991663341,-470.0,0.00045976,31]
[359400942,1745991663379,-470.0,0.00045976,31]
[359400943,1745991663418,-470.0,0.00045976,31]
[359400944,1745991663457,-465.05157707,0.00045976,31]
[359400945,1745991663498,-470.0,0.00045976,31]
[359400946,1745991663540,-470.0,0.00045976,31]
[359400947,1745991663581,-470.0,0.00045976,31]
[359400948,1745991663623,-546.76843953,0.00045976,31]
[359400949,1745991663662,-470.0,0.00045976,31]
[359400950,1745991663703,-470.0,0.00045976,31]
[359400951,1745991663743,-470.0,0.00045976,31]
[359400952,1745991663782,-591.40247587,0.00045976,31]
[359400953,1745991663821,-470.0,0.00045976,31]
[359400954,1745991663860,-470.0,0.00045976,31]
[359400955,1745991663898,-470.0,0.00045976,31]
[359400956,1745991663940,-470.0,0.00045976,31]
[359400957,1745991663987,-470.0,0.00045976,31]
[359400958,1745991664036,-470.0,0.00045976,31]